[Event "*** SCC Grand Prix: Titled Tuesday Blitz"]
[Site "Chess.com"]
[Date "2020.10.13"]
[Round "8"]
[White "Reader777"]
[Black "Jospem"]
[Result "1-0"]
[WhiteElo "2715"]
[BlackElo "2921"]
[TimeControl "180+1"]
[EndTime "11:34:20 PDT"]
[Termination "Reader777 won by resignation"]

1. d4 {[%clk 0:03:00.9]} 1... Nf6 {[%clk 0:02:59.7]} 2. c4 {[%clk 0:03:00.6]}
2... e6 {[%clk 0:02:59.7]} 3. g3 {[%clk 0:03:00.8]} 3... Bb4+ {[%clk 0:02:59.4]}
4. Nd2 {[%clk 0:02:59.9]} 4... O-O {[%clk 0:02:58.9]} 5. Bg2 {[%clk 0:03:00.2]}
5... d6 {[%clk 0:02:55.1]} 6. Nf3 {[%clk 0:02:59.6]} 6... Qe7 {[%clk 0:02:55.5]}
7. O-O {[%clk 0:02:59.4]} 7... Bxd2 {[%clk 0:02:56.1]} 8. Bxd2 {[%clk
0:02:58.3]} 8... e5 {[%clk 0:02:57]} 9. dxe5 {[%clk 0:02:57.7]} 9... dxe5 {[%clk
0:02:57.9]} 10. Bc3 {[%clk 0:02:57.9]} 10... Nc6 {[%clk 0:02:54]} 11. Qc2 {[%clk
0:02:54.1]} 11... a5 {[%clk 0:02:51.2]} 12. Rfd1 {[%clk 0:02:50.4]} 12... Bg4
{[%clk 0:02:38.7]} 13. h3 {[%clk 0:02:48.5]} 13... Bh5 {[%clk 0:02:38.8]} 14.
Nh4 {[%clk 0:02:47.7]} 14... Bg6 {[%clk 0:02:38.4]} 15. Nxg6 {[%clk 0:02:46.5]}
15... hxg6 {[%clk 0:02:39.3]} 16. Qa4 {[%clk 0:02:24.6]} 16... Nd4 {[%clk
0:02:12.8]} 17. Bxd4 {[%clk 0:02:19.4]} 17... exd4 {[%clk 0:02:13.7]} 18. Bxb7
{[%clk 0:02:09.1]} 18... Rab8 {[%clk 0:02:11.6]} 19. Bf3 {[%clk 0:02:08]} 19...
c5 {[%clk 0:01:59.6]} 20. Qxa5 {[%clk 0:02:05.5]} 20... Rxb2 {[%clk 0:01:59.3]}
21. Rab1 {[%clk 0:01:50.4]} 21... Rfb8 {[%clk 0:01:58.2]} 22. Rxb2 {[%clk
0:01:45.1]} 22... Rxb2 {[%clk 0:01:59.1]} 23. a4 {[%clk 0:01:44.4]} 23... Kh7
{[%clk 0:01:47.2]} 24. Qe1 {[%clk 0:01:37.8]} 24... Rb4 {[%clk 0:01:43.1]} 25.
Ra1 {[%clk 0:01:35.2]} 25... Rxc4 {[%clk 0:01:30.4]} 26. a5 {[%clk 0:01:34.7]}
26... Qa7 {[%clk 0:01:27.2]} 27. a6 {[%clk 0:01:33.6]} 27... Rb4 {[%clk
0:01:26.9]} 28. Qd2 {[%clk 0:01:23.5]} 28... Nd7 {[%clk 0:01:06.6]} 29. Qf4
{[%clk 0:01:17]} 29... Nf6 {[%clk 0:00:26.2]} 30. Qd6 {[%clk 0:01:14]} 30... Rb6
{[%clk 0:00:24.6]} 31. Qxb6 {[%clk 0:01:10.3]} 31... Qxb6 {[%clk 0:00:22.9]} 32.
a7 {[%clk 0:01:10.7]} 32... c4 {[%clk 0:00:22.4]} 33. a8=Q {[%clk 0:01:10]}
33... d3 {[%clk 0:00:22]} 34. exd3 {[%clk 0:01:08.3]} 34... cxd3 {[%clk
0:00:22.9]} 35. Qa5 {[%clk 0:01:05.5]} 35... Qb2 {[%clk 0:00:20.5]} 36. Rd1
{[%clk 0:01:04.3]} 36... Qd4 {[%clk 0:00:20.1]} 37. Qd2 {[%clk 0:01:03.7]} 37...
Qe5 {[%clk 0:00:20.6]} 38. Qxd3 {[%clk 0:01:02.8]} 38... Qc5 {[%clk 0:00:20.7]}
39. Qd4 {[%clk 0:01:02.7]} 39... Qe7 {[%clk 0:00:20.4]} 40. Kg2 {[%clk
0:01:01.2]} 40... g5 {[%clk 0:00:19.7]} 41. Qd3+ {[%clk 0:00:59.6]} 41... Kh6
{[%clk 0:00:19.8]} 42. Qe3 {[%clk 0:00:58.4]} 42... Qc7 {[%clk 0:00:15.8]} 43.
h4 {[%clk 0:00:54.5]} 43... Nh7 {[%clk 0:00:15.1]} 44. hxg5+ {[%clk 0:00:53.4]}
44... Nxg5 {[%clk 0:00:09.8]} 45. Rh1+ {[%clk 0:00:53.2]} 45... Kg6 {[%clk
0:00:10.2]} 46. Bh5+ {[%clk 0:00:53.4]} 46... Kf6 {[%clk 0:00:09.4]} 47. Qf4+
{[%clk 0:00:53.3]} 47... Qxf4 {[%clk 0:00:07.4]} 48. gxf4 {[%clk 0:00:54]} 48...
Ne6 {[%clk 0:00:08.2]} 49. Kg3 {[%clk 0:00:54.3]} 49... Nd4 {[%clk 0:00:08.3]}
50. Bg4 {[%clk 0:00:53.6]} 50... g6 {[%clk 0:00:08.8]} 51. Rd1 {[%clk 0:00:53]}
51... Nb5 {[%clk 0:00:09.1]} 52. Rd5 {[%clk 0:00:52.3]} 52... Nc3 {[%clk
0:00:09.5]} 53. Re5 {[%clk 0:00:47.9]} 53... Na4 {[%clk 0:00:08.3]} 54. Kf3
{[%clk 0:00:46.8]} 54... Nb6 {[%clk 0:00:08.7]} 55. Ke4 {[%clk 0:00:46.8]} 55...
Nc4 {[%clk 0:00:08.7]} 56. Rc5 {[%clk 0:00:46.8]} 56... Nd2+ {[%clk 0:00:09.1]}
57. Ke3 {[%clk 0:00:46]} 57... Nb3 {[%clk 0:00:09.3]} 58. Rd5 {[%clk 0:00:46]}
58... Na1 {[%clk 0:00:08.8]} 59. Kd3 {[%clk 0:00:44.5]} 59... Ke7 {[%clk
0:00:09.4]} 60. Kc3 {[%clk 0:00:44.3]} 60... f5 {[%clk 0:00:09.8]} 61. Be2
{[%clk 0:00:43.5]} 61... Ke6 {[%clk 0:00:09.5]} 62. Bc4 {[%clk 0:00:44]} 62...
g5 {[%clk 0:00:10.4]} 63. fxg5 {[%clk 0:00:43.3]} 1-0

[Event "*** SCC Grand Prix: Titled Tuesday Blitz"]
[Site "Chess.com"]
[Date "2020.10.13"]
[Round "8"]
[White "karwowskikacper"]
[Black "Fischerev7"]
[Result "1-0"]
[WhiteElo "2344"]
[BlackElo "2251"]
[TimeControl "180+1"]
[EndTime "11:34:20 PDT"]
[Termination "karwowskikacper won by checkmate"]

1. f4 {[%clk 0:03:00.9]} 1... g6 {[%clk 0:02:57.5]} 2. Nf3 {[%clk 0:03:00.6]}
2... Bg7 {[%clk 0:02:57.6]} 3. e3 {[%clk 0:03:00.2]} 3... Nf6 {[%clk 0:02:55.8]}
4. b3 {[%clk 0:02:58.9]} 4... O-O {[%clk 0:02:55.9]} 5. Bb2 {[%clk 0:02:58.9]}
5... d6 {[%clk 0:02:56.4]} 6. Be2 {[%clk 0:02:59.1]} 6... b6 {[%clk 0:02:55.5]}
7. O-O {[%clk 0:02:59.4]} 7... Bb7 {[%clk 0:02:55.8]} 8. c4 {[%clk 0:02:59.8]}
8... c5 {[%clk 0:02:56.1]} 9. Nc3 {[%clk 0:02:59.2]} 9... Ne4 {[%clk 0:02:52.7]}
10. Qc2 {[%clk 0:02:55.3]} 10... Nd7 {[%clk 0:02:32]} 11. Nxe4 {[%clk
0:02:42.4]} 11... Bxb2 {[%clk 0:02:28.2]} 12. Nxd6 {[%clk 0:02:10.7]} 12... Bxf3
{[%clk 0:02:00.3]} 13. Bxf3 {[%clk 0:01:19.2]} 13... Bxa1 {[%clk 0:01:57.8]} 14.
Nb7 {[%clk 0:01:17]} 14... Qc7 {[%clk 0:01:51]} 15. Rxa1 {[%clk 0:01:16.1]}
15... Rab8 {[%clk 0:01:41.5]} 16. d4 {[%clk 0:00:54.3]} 16... Rxb7 {[%clk
0:01:35.7]} 17. Bxb7 {[%clk 0:00:55.2]} 17... Qxb7 {[%clk 0:01:36.4]} 18. d5
{[%clk 0:00:55.4]} 18... Qc7 {[%clk 0:01:25.5]} 19. g3 {[%clk 0:00:52.4]} 19...
e6 {[%clk 0:01:21.4]} 20. dxe6 {[%clk 0:00:46.5]} 20... fxe6 {[%clk 0:01:22.3]}
21. Qe4 {[%clk 0:00:47]} 21... Qd6 {[%clk 0:01:19.3]} 22. Qc2 {[%clk 0:00:38.7]}
22... Nf6 {[%clk 0:01:17.8]} 23. Rd1 {[%clk 0:00:39]} 23... Qe7 {[%clk
0:01:18.2]} 24. Qd3 {[%clk 0:00:37.9]} 24... Rf7 {[%clk 0:01:05.7]} 25. e4
{[%clk 0:00:33.1]} 25... Qd7 {[%clk 0:01:01.8]} 26. Qe2 {[%clk 0:00:30.5]} 26...
Qc7 {[%clk 0:00:59.1]} 27. e5 {[%clk 0:00:30]} 27... Nh5 {[%clk 0:00:54.9]} 28.
Rd6 {[%clk 0:00:24.7]} 28... Qe7 {[%clk 0:00:54.2]} 29. Qf3 {[%clk 0:00:20.1]}
29... Ng7 {[%clk 0:00:52.8]} 30. Qa8+ {[%clk 0:00:19.5]} 30... Rf8 {[%clk
0:00:51.4]} 31. Qc6 {[%clk 0:00:19.1]} 31... Rf7 {[%clk 0:00:47.1]} 32. Qa8+
{[%clk 0:00:12.9]} 32... Ne8 {[%clk 0:00:47]} 33. Rd3 {[%clk 0:00:09.1]} 33...
Kg7 {[%clk 0:00:46.4]} 34. Qc6 {[%clk 0:00:09.3]} 34... h5 {[%clk 0:00:40.8]}
35. h4 {[%clk 0:00:08.8]} 35... Kh7 {[%clk 0:00:40.3]} 36. Qa8 {[%clk
0:00:08.3]} 36... Rf8 {[%clk 0:00:26.9]} 37. Qc6 {[%clk 0:00:07.4]} 37... Ng7
{[%clk 0:00:25.1]} 38. Kh2 {[%clk 0:00:03.6]} 38... Rd8 {[%clk 0:00:22.1]} 39.
Rd6 {[%clk 0:00:03.7]} 39... Rf8 {[%clk 0:00:15.1]} 40. Rd7 {[%clk 0:00:01.9]}
40... Qe8 {[%clk 0:00:15.5]} 41. Qb7 {[%clk 0:00:02.3]} 41... Rg8 {[%clk
0:00:15.8]} 42. Qxa7 {[%clk 0:00:02.6]} 42... Qa8 {[%clk 0:00:14.8]} 43. Rxg7+
{[%clk 0:00:02.4]} 43... Rxg7 {[%clk 0:00:11.3]} 44. Qxa8 {[%clk 0:00:02.8]}
44... Rg8 {[%clk 0:00:12.2]} 45. Qc6 {[%clk 0:00:03.1]} 45... Rg7 {[%clk
0:00:13.1]} 46. Qxe6 {[%clk 0:00:03.3]} 46... Ra7 {[%clk 0:00:13.5]} 47. Qf6
{[%clk 0:00:03.5]} 47... Rxa2+ {[%clk 0:00:13.6]} 48. Kh3 {[%clk 0:00:04.4]}
48... Ra6 {[%clk 0:00:13.4]} 49. Qf7+ {[%clk 0:00:04.5]} 49... Kh6 {[%clk
0:00:13.6]} 50. Qf8+ {[%clk 0:00:05.4]} 50... Kh7 {[%clk 0:00:13.2]} 51. Qe7+
{[%clk 0:00:06.3]} 51... Kh6 {[%clk 0:00:12.5]} 52. Qe8 {[%clk 0:00:06.6]} 52...
b5 {[%clk 0:00:12.6]} 53. Qh8# {[%clk 0:00:06.6]} 1-0

[Event "*** SCC Grand Prix: Titled Tuesday Blitz"]
[Site "Chess.com"]
[Date "2020.10.13"]
[Round "8"]
[White "Rodalquilar"]
[Black "Margency"]
[Result "1-0"]
[WhiteElo "2763"]
[BlackElo "2604"]
[TimeControl "180+1"]
[EndTime "11:34:21 PDT"]
[Termination "Rodalquilar won on time"]

1. d4 {[%clk 0:03:00.9]} 1... Nf6 {[%clk 0:02:57.5]} 2. Bf4 {[%clk 0:03:01.1]}
2... d5 {[%clk 0:02:57.1]} 3. e3 {[%clk 0:03:01.3]} 3... e6 {[%clk 0:02:57.6]}
4. Nf3 {[%clk 0:03:01.2]} 4... Bd6 {[%clk 0:02:57.9]} 5. Bg3 {[%clk 0:03:01.7]}
5... c5 {[%clk 0:02:57.1]} 6. Bb5+ {[%clk 0:03:00.2]} 6... Nc6 {[%clk
0:02:56.5]} 7. Nbd2 {[%clk 0:03:00.5]} 7... O-O {[%clk 0:02:56.4]} 8. c3 {[%clk
0:03:00.4]} 8... Be7 {[%clk 0:02:46.9]} 9. Bd3 {[%clk 0:02:55.1]} 9... Nh5
{[%clk 0:02:41.1]} 10. Ne5 {[%clk 0:02:43.6]} 10... g6 {[%clk 0:02:35.3]} 11. f4
{[%clk 0:02:40.1]} 11... cxd4 {[%clk 0:02:17.6]} 12. exd4 {[%clk 0:02:40]} 12...
Nxe5 {[%clk 0:01:51.4]} 13. fxe5 {[%clk 0:02:38]} 13... Nxg3 {[%clk 0:01:51.1]}
14. hxg3 {[%clk 0:02:38.5]} 14... Bg5 {[%clk 0:01:43.1]} 15. Nf3 {[%clk
0:02:31.9]} 15... f5 {[%clk 0:01:37.6]} 16. Nxg5 {[%clk 0:02:17.1]} 16... Qxg5
{[%clk 0:01:37.1]} 17. Qf3 {[%clk 0:02:17.4]} 17... Kg7 {[%clk 0:01:29.4]} 18.
Ke2 {[%clk 0:02:09]} 18... Bd7 {[%clk 0:01:28.8]} 19. a4 {[%clk 0:01:54.4]}
19... h5 {[%clk 0:01:18.6]} 20. a5 {[%clk 0:01:50.3]} 20... f4 {[%clk
0:01:14.3]} 21. Rh3 {[%clk 0:01:43.1]} 21... Rf7 {[%clk 0:01:02.1]} 22. Rah1
{[%clk 0:01:09.8]} 22... Rh8 {[%clk 0:00:46.2]} 23. gxf4 {[%clk 0:00:30]} 23...
Rxf4 {[%clk 0:00:45.6]} 24. Rg3 {[%clk 0:00:30.4]} 24... Rxf3 {[%clk 0:00:20.3]}
25. Rxg5 {[%clk 0:00:30.2]} 25... Rxd3 {[%clk 0:00:20.9]} 26. Kxd3 {[%clk
0:00:29.6]} 26... Bb5+ {[%clk 0:00:20.3]} 27. Kd2 {[%clk 0:00:28.3]} 27... Rf8
{[%clk 0:00:19.9]} 28. Rhxh5 {[%clk 0:00:18.2]} 28... Rf2+ {[%clk 0:00:19.8]}
29. Ke3 {[%clk 0:00:18.8]} 29... Re2+ {[%clk 0:00:19.9]} 30. Kf3 {[%clk
0:00:16]} 30... Rxb2 {[%clk 0:00:20.3]} 31. Rh3 {[%clk 0:00:15.7]} 31... Bd3
{[%clk 0:00:18.9]} 32. Ke3 {[%clk 0:00:13.4]} 32... Bf5 {[%clk 0:00:15.5]} 33.
Rf3 {[%clk 0:00:10.1]} 33... Rc2 {[%clk 0:00:15.2]} 34. Kf4 {[%clk 0:00:10]}
34... Be4 {[%clk 0:00:12.7]} 35. Rfg3 {[%clk 0:00:07.9]} 35... Rf2+ {[%clk
0:00:10.8]} 36. Ke3 {[%clk 0:00:06.5]} 36... Rc2 {[%clk 0:00:10.5]} 37. Kf4
{[%clk 0:00:07]} 37... Rf2+ {[%clk 0:00:10.1]} 38. Kg4 {[%clk 0:00:04.9]} 38...
Rf1 {[%clk 0:00:10.2]} 39. Re3 {[%clk 0:00:02.2]} 39... Rf2 {[%clk 0:00:07.8]}
40. Kg3 {[%clk 0:00:02.4]} 40... Rxg2+ {[%clk 0:00:07.8]} 41. Kf4 {[%clk
0:00:03]} 41... Rf2+ {[%clk 0:00:06.7]} 42. Kg3 {[%clk 0:00:03.4]} 42... Rf1
{[%clk 0:00:06.7]} 43. Kh2 {[%clk 0:00:02.8]} 43... Rh1+ {[%clk 0:00:05.3]} 44.
Kg3 {[%clk 0:00:02.8]} 44... Kh6 {[%clk 0:00:05.7]} 45. Rg4 {[%clk 0:00:03]}
45... g5 {[%clk 0:00:03.7]} 46. Re2 {[%clk 0:00:02.4]} 46... Rg1+ {[%clk
0:00:02.4]} 47. Kh3 {[%clk 0:00:02.9]} 1-0

[Event "*** SCC Grand Prix: Titled Tuesday Blitz"]
[Site "Chess.com"]
[Date "2020.10.13"]
[Round "8"]
[White "jamalm2"]
[Black "annacramling"]
[Result "0-1"]
[WhiteElo "1797"]
[BlackElo "2011"]
[TimeControl "180+1"]
[EndTime "11:34:21 PDT"]
[Termination "annacramling won by checkmate"]

1. c4 {[%clk 0:03:00.4]} 1... c5 {[%clk 0:02:59.6]} 2. Nf3 {[%clk 0:02:57.5]}
2... Nc6 {[%clk 0:02:58.8]} 3. e3 {[%clk 0:02:57.2]} 3... e5 {[%clk 0:02:57.3]}
4. d3 {[%clk 0:02:50.5]} 4... Nf6 {[%clk 0:02:46.4]} 5. b3 {[%clk 0:02:49.5]}
5... d5 {[%clk 0:02:43.4]} 6. cxd5 {[%clk 0:02:47.1]} 6... Nxd5 {[%clk
0:02:44.3]} 7. Bb2 {[%clk 0:02:46.3]} 7... Qc7 {[%clk 0:02:36.2]} 8. Be2 {[%clk
0:02:41.9]} 8... Be7 {[%clk 0:02:29.3]} 9. O-O {[%clk 0:02:41]} 9... O-O {[%clk
0:02:28.6]} 10. Nbd2 {[%clk 0:02:40.1]} 10... Rd8 {[%clk 0:02:27.2]} 11. a3
{[%clk 0:02:36]} 11... Bg4 {[%clk 0:02:15.6]} 12. Qc2 {[%clk 0:02:31.2]} 12...
Rac8 {[%clk 0:01:56.9]} 13. h3 {[%clk 0:02:29]} 13... Be6 {[%clk 0:01:46.8]} 14.
Nc4 {[%clk 0:02:24.9]} 14... f6 {[%clk 0:01:39.5]} 15. Rfd1 {[%clk 0:02:19.6]}
15... b5 {[%clk 0:01:37.4]} 16. Ncd2 {[%clk 0:02:16.4]} 16... Na5 {[%clk
0:01:34.3]} 17. Rab1 {[%clk 0:02:09.1]} 17... Bf8 {[%clk 0:01:22.5]} 18. Bc3
{[%clk 0:01:54.2]} 18... Nxc3 {[%clk 0:01:14.6]} 19. Qxc3 {[%clk 0:01:52.8]}
19... Nc6 {[%clk 0:00:56.7]} 20. b4 {[%clk 0:01:41.5]} 20... cxb4 {[%clk
0:00:56.1]} 21. axb4 {[%clk 0:01:40.3]} 21... Qe7 {[%clk 0:00:54]} 22. d4 {[%clk
0:01:27.5]} 22... Nxd4 {[%clk 0:00:47.6]} 23. Qxc8 {[%clk 0:01:19.1]} 23...
Nxe2+ {[%clk 0:00:45.2]} 24. Kf1 {[%clk 0:01:18.4]} 24... Rxc8 {[%clk
0:00:44.5]} 25. Kxe2 {[%clk 0:01:18.3]} 25... Rc2 {[%clk 0:00:36.1]} 26. Rdc1
{[%clk 0:01:12.1]} 26... Bc4+ {[%clk 0:00:23.6]} 27. Kd1 {[%clk 0:01:08.9]}
27... Rxc1+ {[%clk 0:00:22.6]} 28. Kxc1 {[%clk 0:01:05.7]} 28... Qc7 {[%clk
0:00:21.9]} 29. Kd1 {[%clk 0:00:59.8]} 29... h6 {[%clk 0:00:16.8]} 30. g4 {[%clk
0:00:52.3]} 30... a5 {[%clk 0:00:16.5]} 31. bxa5 {[%clk 0:00:50]} 31... Qxa5
{[%clk 0:00:16.6]} 32. Nxc4 {[%clk 0:00:47.6]} 32... Qa4+ {[%clk 0:00:11.6]} 33.
Ke1 {[%clk 0:00:35.8]} 33... Qxc4 {[%clk 0:00:11.3]} 34. Nd2 {[%clk 0:00:34.7]}
34... Bb4 {[%clk 0:00:10]} 35. Rd1 {[%clk 0:00:28.8]} 35... Bxd2+ {[%clk
0:00:06.5]} 36. Rxd2 {[%clk 0:00:27.8]} 36... b4 {[%clk 0:00:06.7]} 37. f3
{[%clk 0:00:24.4]} 37... b3 {[%clk 0:00:06.4]} 38. Kf2 {[%clk 0:00:22.5]} 38...
Qc3 {[%clk 0:00:05.1]} 39. Rd8+ {[%clk 0:00:19]} 39... Kh7 {[%clk 0:00:05.2]}
40. Rb8 {[%clk 0:00:14.9]} 40... b2 {[%clk 0:00:05.1]} 41. h4 {[%clk 0:00:10.9]}
41... Qc2+ {[%clk 0:00:04.5]} 42. Kg3 {[%clk 0:00:09.9]} 42... b1=Q {[%clk
0:00:04.9]} 43. Rxb1 {[%clk 0:00:07.6]} 43... Qxb1 {[%clk 0:00:05.8]} 44. h5
{[%clk 0:00:07.1]} 44... Qg1+ {[%clk 0:00:05.6]} 45. Kh4 {[%clk 0:00:05.1]}
45... Qh2# {[%clk 0:00:05.7]} 0-1

[Event "*** SCC Grand Prix: Titled Tuesday Blitz"]
[Site "Chess.com"]
[Date "2020.10.13"]
[Round "8"]
[White "esrosenberg"]
[Black "romulocardoso"]
[Result "0-1"]
[WhiteElo "2296"]
[BlackElo "2106"]
[TimeControl "180+1"]
[EndTime "11:34:24 PDT"]
[Termination "romulocardoso won by checkmate"]

1. d4 {[%clk 0:03:00.9]} 1... Nf6 {[%clk 0:02:49.5]} 2. Bg5 {[%clk 0:03:00.8]}
2... e6 {[%clk 0:02:47.7]} 3. e4 {[%clk 0:03:00.4]} 3... Be7 {[%clk 0:02:47.8]}
4. Bd3 {[%clk 0:02:54.4]} 4... Nxe4 {[%clk 0:02:28.3]} 5. Bxe7 {[%clk 0:02:51]}
5... Qxe7 {[%clk 0:02:29.2]} 6. Bxe4 {[%clk 0:02:51.3]} 6... Qb4+ {[%clk
0:02:29.1]} 7. Nc3 {[%clk 0:02:39.7]} 7... Qxb2 {[%clk 0:02:28.7]} 8. Nge2
{[%clk 0:02:40.3]} 8... d5 {[%clk 0:02:27.7]} 9. Bd3 {[%clk 0:02:31.2]} 9... c5
{[%clk 0:02:27.8]} 10. Rb1 {[%clk 0:02:24.6]} 10... Qa3 {[%clk 0:02:25.2]} 11.
Rb3 {[%clk 0:02:18.6]} 11... Qa5 {[%clk 0:02:24.5]} 12. Rb5 {[%clk 0:02:18.4]}
12... Qa3 {[%clk 0:02:15.7]} 13. Rxc5 {[%clk 0:02:17.9]} 13... Nd7 {[%clk
0:02:16.1]} 14. Bb5 {[%clk 0:02:10.2]} 14... b6 {[%clk 0:02:12.2]} 15. Rc7
{[%clk 0:02:04.6]} 15... Qd6 {[%clk 0:02:06]} 16. Rc6 {[%clk 0:02:02.6]} 16...
Qb4 {[%clk 0:02:00.3]} 17. O-O {[%clk 0:01:38.1]} 17... a6 {[%clk 0:01:14.3]}
18. Ba4 {[%clk 0:00:54.6]} 18... b5 {[%clk 0:01:13.2]} 19. Bb3 {[%clk
0:00:54.5]} 19... Bb7 {[%clk 0:01:12.9]} 20. Rc7 {[%clk 0:00:51.6]} 20... Rb8
{[%clk 0:01:10.8]} 21. Re1 {[%clk 0:00:36.4]} 21... Qd6 {[%clk 0:01:09.6]} 22.
Rxb7 {[%clk 0:00:26.1]} 22... Rxb7 {[%clk 0:01:10.5]} 23. Ng3 {[%clk 0:00:24.2]}
23... O-O {[%clk 0:01:07.8]} 24. Nce2 {[%clk 0:00:18.2]} 24... a5 {[%clk
0:01:07.9]} 25. c3 {[%clk 0:00:18.5]} 25... a4 {[%clk 0:01:07.8]} 26. Bc2 {[%clk
0:00:19]} 26... Nb6 {[%clk 0:01:08]} 27. Kh1 {[%clk 0:00:17.2]} 27... Nc4 {[%clk
0:01:07.5]} 28. Ng1 {[%clk 0:00:17.6]} 28... b4 {[%clk 0:01:06.3]} 29. Qd3
{[%clk 0:00:16.6]} 29... g6 {[%clk 0:01:04.9]} 30. cxb4 {[%clk 0:00:15.5]} 30...
Qxb4 {[%clk 0:01:05.2]} 31. h4 {[%clk 0:00:14.7]} 31... Qxe1 {[%clk 0:01:02.4]}
32. h5 {[%clk 0:00:14.1]} 32... Qd2 {[%clk 0:00:57.5]} 33. Qxd2 {[%clk 0:00:12]}
33... Nxd2 {[%clk 0:00:58.4]} 34. Bxa4 {[%clk 0:00:12.7]} 34... Ra7 {[%clk
0:00:57.9]} 35. Bd1 {[%clk 0:00:10.5]} 35... Rxa2 {[%clk 0:00:56.9]} 36. hxg6
{[%clk 0:00:11.4]} 36... fxg6 {[%clk 0:00:56.2]} 37. f3 {[%clk 0:00:10.7]} 37...
Ra1 {[%clk 0:00:53.7]} 38. Bc2 {[%clk 0:00:10.2]} 38... Rc8 {[%clk 0:00:53]} 39.
Bd3 {[%clk 0:00:10]} 39... Rc3 {[%clk 0:00:53.1]} 40. Bb5 {[%clk 0:00:09]} 40...
Rcc1 {[%clk 0:00:50.2]} 41. Ne2 {[%clk 0:00:08.4]} 41... Rcb1 {[%clk 0:00:49.1]}
42. Bd3 {[%clk 0:00:07.8]} 42... Rb3 {[%clk 0:00:48]} 43. Bc2 {[%clk 0:00:07.1]}
43... Rb2 {[%clk 0:00:47.7]} 44. Bd3 {[%clk 0:00:07]} 44... Nc4 {[%clk
0:00:46.7]} 45. Kh2 {[%clk 0:00:05.8]} 45... Ne3 {[%clk 0:00:46.1]} 46. Kg3
{[%clk 0:00:04.4]} 46... Rxg1 {[%clk 0:00:42.3]} 47. Nxg1 {[%clk 0:00:03.2]}
47... Rxg2+ {[%clk 0:00:43.2]} 48. Kf4 {[%clk 0:00:03.7]} 48... Rxg1 {[%clk
0:00:43.5]} 49. Kxe3 {[%clk 0:00:04]} 49... h5 {[%clk 0:00:43.5]} 50. Kf2 {[%clk
0:00:03.9]} 50... Rd1 {[%clk 0:00:43.6]} 51. Bxg6 {[%clk 0:00:03.9]} 51... Rxd4
{[%clk 0:00:44.5]} 52. Bxh5 {[%clk 0:00:03.5]} 52... Kg7 {[%clk 0:00:44.3]} 53.
Bg4 {[%clk 0:00:03.5]} 53... Rxg4 {[%clk 0:00:42.4]} 54. fxg4 {[%clk 0:00:03.6]}
54... Kf6 {[%clk 0:00:43.3]} 55. Kf3 {[%clk 0:00:03.2]} 55... e5 {[%clk
0:00:43.7]} 56. Ke3 {[%clk 0:00:02.8]} 56... Kg5 {[%clk 0:00:43.9]} 57. Kf3
{[%clk 0:00:03.3]} 57... e4+ {[%clk 0:00:43.9]} 58. Kg3 {[%clk 0:00:03.1]} 58...
d4 {[%clk 0:00:44]} 59. Kh3 {[%clk 0:00:03.2]} 59... d3 {[%clk 0:00:42.9]} 60.
Kg3 {[%clk 0:00:03.7]} 60... d2 {[%clk 0:00:43.1]} 61. Kf2 {[%clk 0:00:04.1]}
61... d1=Q {[%clk 0:00:43.2]} 62. Ke3 {[%clk 0:00:05]} 62... Qf3+ {[%clk
0:00:43.2]} 63. Kd2 {[%clk 0:00:04.6]} 63... Qd3+ {[%clk 0:00:43.4]} 64. Ke1
{[%clk 0:00:04.8]} 64... Qc2 {[%clk 0:00:43.3]} 65. Kf1 {[%clk 0:00:04.7]} 65...
e3 {[%clk 0:00:43.6]} 66. Kg1 {[%clk 0:00:05]} 66... Qf2+ {[%clk 0:00:43.4]} 67.
Kh1 {[%clk 0:00:05.4]} 67... Kh4 {[%clk 0:00:44.3]} 68. g5 {[%clk 0:00:05.2]}
68... Kh3 {[%clk 0:00:45.2]} 69. g6 {[%clk 0:00:05.2]} 69... Qf1# {[%clk
0:00:46.1]} 0-1

[Event "*** SCC Grand Prix: Titled Tuesday Blitz"]
[Site "Chess.com"]
[Date "2020.10.13"]
[Round "8"]
[White "MF1966Idrisov"]
[Black "BeanScreen"]
[Result "0-1"]
[WhiteElo "2339"]
[BlackElo "2698"]
[TimeControl "180+1"]
[EndTime "11:34:27 PDT"]
[Termination "BeanScreen won on time"]

1. Nf3 {[%clk 0:03:00.9]} 1... d5 {[%clk 0:02:59.7]} 2. b3 {[%clk 0:03:00.8]}
2... Nf6 {[%clk 0:02:59.9]} 3. Bb2 {[%clk 0:03:00.8]} 3... Bf5 {[%clk
0:02:59.9]} 4. e3 {[%clk 0:03:00.6]} 4... e6 {[%clk 0:02:58.7]} 5. d4 {[%clk
0:03:00.5]} 5... Bd6 {[%clk 0:02:58.5]} 6. Bd3 {[%clk 0:03:00.3]} 6... Bg6
{[%clk 0:02:58.7]} 7. O-O {[%clk 0:02:59.2]} 7... O-O {[%clk 0:02:55.8]} 8. Ne5
{[%clk 0:02:56.6]} 8... Nbd7 {[%clk 0:02:51.2]} 9. Nxg6 {[%clk 0:02:55.8]} 9...
hxg6 {[%clk 0:02:51.4]} 10. c4 {[%clk 0:02:54.7]} 10... c6 {[%clk 0:02:51.3]}
11. Nc3 {[%clk 0:02:53.7]} 11... a6 {[%clk 0:02:38.3]} 12. e4 {[%clk 0:02:37.4]}
12... dxe4 {[%clk 0:02:37.5]} 13. Nxe4 {[%clk 0:02:37.3]} 13... Nxe4 {[%clk
0:02:38]} 14. Bxe4 {[%clk 0:02:34.2]} 14... Qh4 {[%clk 0:02:38.1]} 15. Re1
{[%clk 0:02:11.9]} 15... Qxh2+ {[%clk 0:02:36.9]} 16. Kf1 {[%clk 0:02:11.6]}
16... Rad8 {[%clk 0:02:04.9]} 17. g3 {[%clk 0:02:09.1]} 17... e5 {[%clk
0:01:46.5]} 18. Bg2 {[%clk 0:01:28.5]} 18... Bb4 {[%clk 0:01:26.3]} 19. Re2
{[%clk 0:01:18]} 19... exd4 {[%clk 0:01:23.6]} 20. Qxd4 {[%clk 0:01:13.9]} 20...
Nf6 {[%clk 0:01:23.3]} 21. Qb6 {[%clk 0:01:13.6]} 21... Bd6 {[%clk 0:00:55.7]}
22. Qxb7 {[%clk 0:01:01.6]} 22... Nh5 {[%clk 0:00:52.3]} 23. Qxc6 {[%clk
0:00:52.6]} 23... Bxg3 {[%clk 0:00:50.1]} 24. Qf3 {[%clk 0:00:47]} 24... Rfe8
{[%clk 0:00:43.5]} 25. Rae1 {[%clk 0:00:43.1]} 25... Rxe2 {[%clk 0:00:42.9]} 26.
Rxe2 {[%clk 0:00:42.9]} 26... Rd1+ {[%clk 0:00:40.8]} 27. Re1 {[%clk 0:00:42.8]}
27... Rxe1+ {[%clk 0:00:41.3]} 28. Kxe1 {[%clk 0:00:42.6]} 28... Be5 {[%clk
0:00:27.4]} 29. Bc1 {[%clk 0:00:21.1]} 29... Bf6 {[%clk 0:00:15.9]} 30. Be3
{[%clk 0:00:20]} 30... Qe5 {[%clk 0:00:15.6]} 31. Bf1 {[%clk 0:00:16.9]} 31...
Qa1+ {[%clk 0:00:13.6]} 32. Qd1 {[%clk 0:00:16.6]} 32... Bc3+ {[%clk 0:00:13.8]}
33. Ke2 {[%clk 0:00:15.8]} 33... Qxa2+ {[%clk 0:00:13.2]} 34. Kd3 {[%clk
0:00:14.8]} 34... Bf6 {[%clk 0:00:12.1]} 35. c5 {[%clk 0:00:14.6]} 35... Qb2
{[%clk 0:00:11.7]} 36. Qc2 {[%clk 0:00:13.9]} 36... Qe5 {[%clk 0:00:11.5]} 37.
c6 {[%clk 0:00:10.6]} 37... Qf5+ {[%clk 0:00:12]} 38. Kd2 {[%clk 0:00:10.5]}
38... Qc8 {[%clk 0:00:09.4]} 39. Bg2 {[%clk 0:00:06]} 39... Be5 {[%clk
0:00:09.2]} 40. Qd3 {[%clk 0:00:05.4]} 40... Qc7 {[%clk 0:00:08.6]} 41. Qd7
{[%clk 0:00:05.3]} 41... Qa5+ {[%clk 0:00:08.7]} 42. Ke2 {[%clk 0:00:05]} 42...
Qb5+ {[%clk 0:00:09.1]} 43. Kf3 {[%clk 0:00:04.4]} 43... Nf6 {[%clk 0:00:08.1]}
44. Qc8+ {[%clk 0:00:02.9]} 44... Kh7 {[%clk 0:00:08.5]} 45. Qh3+ {[%clk
0:00:01.9]} 45... Nh5 {[%clk 0:00:09.2]} 46. Qd7 {[%clk 0:00:01.8]} 46... Qxb3
{[%clk 0:00:06.8]} 0-1